bitfinex-derivatives/quotes_BTCF0:USTF0_20260107
["timestamp","ask_amount","ask_price","bid_price","bid_amount"]
[1767815503540,0.010963,91311.0,91297.0,0.33074106]
[1767815504142,0.09796723,91317.0,91297.0,0.33074106]
[1767815504447,0.010963,91312.0,91297.0,0.33074106]
[1767815504645,0.010962,91315.0,91298.0,0.19745647]
[1767815504838,0.18800735,91323.0,91303.0,0.09849384]
[1767815505037,0.010962,91322.0,91303.0,0.19745647]
[1767815505234,0.01315214,91319.0,91303.0,0.19745647]
[1767815505449,0.01315214,91319.0,91300.0,0.0932]
[1767815505649,0.00219014,91319.0,91302.0,0.19745647]
[1767815505844,0.00219014,91319.0,91304.0,0.19745647]
[1767815506855,0.00219014,91319.0,91305.0,0.19745647]
[1767815507349,0.00219014,91319.0,91306.0,0.19745647]
[1767815507548,0.0932,91326.0,91307.0,0.19745647]
[1767815508246,0.01096,91335.0,91314.0,0.19745647]
[1767815508546,0.09004012,91337.0,91314.0,0.19745647]
[1767815508739,0.010962,91322.0,91311.0,0.0932]
[1767815509555,0.010961,91325.0,91312.0,0.19745647]
[1767815509739,0.010961,91325.0,91312.0,1.25395647]
[1767815510146,0.010961,91325.0,91313.0,0.19745647]
[1767815510344,0.01096,91339.0,91316.0,0.19745647]
[1767815510541,0.01096,91338.0,91317.0,0.19745647]
[1767815510747,0.010961,91325.0,91317.0,0.19745647]
[1767815511253,0.010962,91323.0,91311.0,0.29065647]
[1767815511639,0.010961,91326.0,91317.0,0.19745647]
[1767815512248,0.010961,91329.0,91317.0,0.19745647]
[1767815512451,0.01096,91332.0,91317.0,0.19745647]
[1767815512751,0.010961,91329.0,91317.0,0.19745647]
[1767815513249,0.09004012,91340.0,91319.0,0.19745647]
[1767815513648,0.09004012,91340.0,91320.0,0.09896263]
[1767815513949,0.09004012,91340.0,91320.0,0.19745647]
[1767815514243,0.010961,91331.0,91322.0,0.19745647]
[1767815514849,0.010961,91328.0,91321.0,0.0932]
[1767815515046,0.010961,91325.0,91321.0,0.19216263]
[1767815515240,0.09796723,91332.0,91309.0,0.09849384]
[1767815515445,0.010963,91312.0,91307.0,0.0932]
[1767815515643,0.010963,91312.0,91298.0,0.09849384]
[1767815515848,0.010963,91312.0,91299.0,0.19169384]
[1767815516050,0.18800735,91325.0,91300.0,0.09849384]
[1767815516238,0.010962,91316.0,91300.0,0.09849384]
[1767815516654,0.18800735,91325.0,91300.0,0.09849384]
[1767815517151,0.18800735,91325.0,91301.0,0.09896263]
[1767815517450,0.19896835,91327.0,91305.0,0.09896263]
[1767815517750,0.18800735,91326.0,91306.0,0.0932]
[1767815517949,0.010962,91316.0,91306.0,0.0932]
[1767815518248,0.0932,91331.0,91311.0,0.09849384]
[1767815518449,0.010962,91322.0,91311.0,0.09849384]
[1767815519047,0.010962,91322.0,91312.0,0.19745647]
[1767815519253,0.09796723,91338.0,91315.0,0.09896263]
[1767815519455,0.010961,91328.0,91316.0,0.09849384]
[1767815520248,0.010961,91325.0,91311.0,0.09849384]
[1767815520758,0.010962,91323.0,91311.0,0.09849384]
[1767815521457,0.010962,91323.0,91312.0,0.09849384]
[1767815521858,0.010962,91317.0,91306.0,0.09448864]
[1767815522161,0.010962,91323.0,91311.0,0.0932]
[1767815522364,0.010962,91321.0,91311.0,0.0932]
[1767815522863,0.09643551,91325.0,91300.0,0.09448864]
[1767815523160,0.010962,91319.0,91303.0,0.09448864]
[1767815523357,0.010962,91319.0,91304.0,0.09448864]
[1767815523551,0.010962,91319.0,91306.0,0.09448864]
[1767815523751,0.010962,91322.0,91308.0,0.09448864]
[1767815524050,0.010962,91322.0,91310.0,0.09448864]
[1767815524255,0.010962,91320.0,91310.0,0.09448864]
[1767815524661,0.010962,91319.0,91304.0,0.09448864]
[1767815524854,0.3919978,91437.0,91306.0,0.09448864]
[1767815525163,0.010962,91321.0,91308.0,0.09448864]
[1767815525557,0.010962,91321.0,91308.0,0.18930175]
[1767815526065,0.010962,91321.0,91310.0,0.18930175]
[1767815526265,0.010962,91321.0,91311.0,0.09316]
[1767815527153,0.010962,91321.0,91312.0,0.18930175]
[1767815527864,0.09643551,91332.0,91311.0,0.09316]
[1767815527865,0.010962,91319.0,91311.0,0.09316]
[1767815530356,0.010962,91322.0,91311.0,0.09316]
[1767815530555,0.010962,91320.0,91311.0,0.09316]
[1767815531054,0.010962,91318.0,91311.0,0.09316]
[1767815531864,0.010961,91330.0,91311.0,0.09316]
[1767815532367,0.010961,91330.0,91312.0,0.09371565]
[1767815533064,0.010961,91330.0,91313.0,0.09371565]
[1767815533065,0.010962,91323.0,91313.0,0.09371565]
[1767815533565,0.010962,91322.0,91313.0,0.09371565]
[1767815534174,0.010961,91325.0,91313.0,0.09371565]
[1767815534467,0.010961,91323.0,91313.0,0.09371565]
[1767815534968,0.010962,91321.0,91313.0,0.09371565]
[1767815535264,0.010961,91324.0,91313.0,0.09371565]
[1767815535654,0.010961,91324.0,91314.0,0.09371565]
[1767815535857,0.010962,91323.0,91314.0,0.09371565]
[1767815536057,0.010961,91330.0,91314.0,0.09371565]
[1767815536454,0.10960991,91330.0,91311.0,0.09316]
[1767815536658,0.010961,91331.0,91313.0,0.18872489]
[1767815536868,0.010961,91331.0,91314.0,0.09371565]
[1767815537070,0.010962,91321.0,91313.0,0.09500924]
[1767815538167,0.1953164,91325.0,91303.0,0.09371565]
[1767815538362,0.09864891,91328.0,91308.0,0.09371565]
[1767815538674,0.10762849,91329.0,91311.0,0.09371565]
[1767815538675,0.010961,91326.0,91311.0,0.09371565]
[1767815538873,0.09666749,91329.0,91311.0,0.18687565]
[1767815539671,0.010961,91328.0,91311.0,0.18687565]
[1767815541067,0.010961,91325.0,91311.0,0.09316]
[1767815541271,0.10960991,91328.0,91311.0,0.09316]
[1767815541272,0.010961,91327.0,91311.0,0.09316]
[1767815541662,0.010961,91327.0,91312.0,0.09316]
[1767815542567,0.010961,91326.0,91312.0,0.09316]
[1767815542767,0.10960991,91328.0,91312.0,0.09316]
[1767815543175,0.010961,91327.0,91312.0,0.09316]
[1767815544373,0.10762849,91326.0,91303.0,0.09371565]
[1767815544574,0.010962,91321.0,91298.0,0.18872489]
[1767815544783,0.010961,91327.0,91304.0,0.09500924]
[1767815545079,0.010961,91327.0,91310.0,0.09371565]
[1767815545377,0.010961,91328.0,91310.0,0.09371565]
[1767815545881,0.09666749,91330.0,91309.0,0.09500924]
[1767815546068,0.09666749,91330.0,91309.0,0.18872489]
[1767815546574,0.09666749,91330.0,91309.0,0.09500924]
[1767815547177,0.09666749,91330.0,91309.0,0.18872489]
[1767815548590,0.010961,91326.0,91309.0,0.18872489]
[1767815548889,0.010961,91326.0,91310.0,0.09371565]
[1767815549287,0.010961,91326.0,91311.0,0.09371565]
[1767815550580,0.010961,91325.0,91311.0,0.09371565]
[1767815551077,0.010961,91325.0,91310.0,0.09500924]
[1767815552790,0.010961,91325.0,91311.0,0.09390503]
[1767815553586,0.010961,91324.0,91310.0,0.09500924]
[1767815553786,0.010961,91324.0,91311.0,0.09390503]
[1767815554091,0.010961,91324.0,91311.0,0.09320403]
[1767815554291,0.00150478,91332.0,91312.0,0.18710906]
[1767815554793,0.010961,91325.0,91312.0,0.18710906]
[1767815557387,0.010961,91324.0,91312.0,0.18710906]
[1767815558096,0.010961,91324.0,91313.0,0.09390503]
[1767815558593,0.010961,91324.0,91309.0,0.09390503]
[1767815559090,0.010961,91324.0,91310.0,0.09390503]
[1767815559295,0.010961,91324.0,91312.0,0.09390503]
[1767815559589,0.010961,91324.0,91291.0,0.09820984]
[1767815559590,0.010961,91324.0,91310.0,0.09390503]
[1767815559792,0.010961,91324.0,91310.0,0.18710906]
[1767815559987,0.010961,91324.0,91311.0,0.09390503]
[1767815560696,0.010961,91324.0,91311.0,0.18710906]
[1767815560886,0.010961,91324.0,91312.0,0.09390503]
[1767815561198,0.010961,91324.0,91313.0,0.09320403]
[1767815561588,0.010961,91329.0,91313.0,0.09320403]
[1767815562900,0.010961,91325.0,91306.0,0.18710906]
[1767815563199,0.00832897,91324.0,91306.0,0.18710906]
[1767815563498,0.01928997,91325.0,91307.0,0.09390503]
[1767815563698,0.010961,91325.0,91307.0,0.09390503]
[1767815563901,0.010961,91325.0,91308.0,0.09390503]
[1767815564895,0.010962,91321.0,91308.0,0.09390503]
[1767815565100,0.010961,91324.0,91311.0,0.09390503]
[1767815566305,0.010962,91323.0,91308.0,0.09390503]
[1767815566490,0.01918437,91328.0,91309.0,0.09390503]
[1767815566900,0.00822337,91328.0,91309.0,0.09320403]
[1767815567097,0.010962,91321.0,91309.0,0.09320403]
[1767815567305,0.09954474,91321.0,91297.0,0.09320403]
[1767815567601,0.010963,91307.0,91288.0,0.09390503]
[1767815567803,0.010963,91307.0,91286.0,0.00011777]
[1767815567804,0.010965,91295.0,91286.0,0.00011777]
[1767815567999,0.010963,91307.0,91286.0,0.00011777]
[1767815568303,0.010964,91304.0,91289.0,0.09320403]
[1767815568603,0.09316,91316.0,91295.0,0.09320403]
[1767815568798,0.09316,91316.0,91300.0,0.09390503]
[1767815568999,0.010964,91304.0,91295.0,0.09316]
[1767815569193,0.010964,91304.0,91286.0,0.00011777]
[1767815569194,0.010963,91313.0,91286.0,0.00011777]
[1767815569393,0.010964,91303.0,91287.0,0.09316]
[1767815569898,0.010963,91313.0,91287.0,0.09316]
[1767815570099,0.010964,91301.0,91287.0,0.09316]
[1767815570499,0.010964,91301.0,91286.0,0.00011777]
[1767815570695,0.024282,91311.0,91286.0,0.00011777]
[1767815570900,0.024282,91309.0,91290.0,0.18710906]
[1767815571095,0.024282,91309.0,91291.0,0.09320403]
[1767815571301,0.010964,91300.0,91291.0,0.18710906]
[1767815571506,0.010963,91310.0,91293.0,0.09320403]
[1767815572205,0.010963,91310.0,91294.0,0.09320403]
[1767815573001,0.010964,91301.0,91294.0,0.09320403]
[1767815573202,0.104122,91316.0,91297.0,0.09320403]
[1767815573397,0.104122,91316.0,91299.0,0.09320403]
[1767815573600,0.104122,91316.0,91300.0,0.09320403]
[1767815573805,0.104122,91316.0,91301.0,0.09320403]
[1767815575311,0.010964,91305.0,91301.0,0.09320403]
[1767815575510,0.104122,91316.0,91301.0,0.09320403]
[1767815575807,0.09316,91316.0,91301.0,0.09320403]
[1767815576014,0.09316,91316.0,91302.0,0.09320403]
[1767815577316,0.010964,91301.0,91294.0,0.09390503]
[1767815578414,0.010964,91304.0,91294.0,0.09390503]
[1767815578614,0.010963,91313.0,91295.0,0.09390503]
[1767815578809,0.010963,91313.0,91294.0,0.13308642]
[1767815578810,0.010963,91313.0,91300.0,0.22699145]
[1767815579117,0.14933685,91331.0,91301.0,0.09390503]
[1767815579415,0.14933685,91331.0,91286.0,0.00011777]
[1767815579416,0.010961,91329.0,91309.0,0.09320403]
[1767815579616,0.010961,91329.0,91311.0,0.09320403]
[1767815579815,0.010962,91316.0,91311.0,0.09320403]
[1767815580805,0.010963,91314.0,91311.0,3e-08]
[1767815581006,0.11050774,91310.0,91290.0,0.13308642]
[1767815581310,0.010964,91301.0,91291.0,0.1851124]
[1767815581512,0.010964,91301.0,91292.0,0.0919124]
[1767815581913,0.09954474,91310.0,91292.0,0.0919124]
[1767815582126,0.010964,91301.0,91292.0,0.0919124]
[1767815583022,0.010964,91299.0,91292.0,0.0919124]
[1767815583420,0.010964,91299.0,91298.0,4e-08]
[1767815584118,0.010965,91295.0,91287.0,0.09583774]
[1767815584323,0.010965,91294.0,91286.0,0.09331777]
[1767815584514,0.010965,91297.0,91286.0,0.09331777]
[1767815584714,0.010965,91297.0,91286.0,0.18915551]
[1767815584915,0.09495881,91301.0,91287.0,0.13308642]
[1767815584916,0.010965,91296.0,91287.0,0.13308642]
[1767815585516,0.010964,91299.0,91288.0,0.09583774]
[1767815585822,0.010965,91297.0,91288.0,0.09583774]
[1767815586818,0.010964,91298.0,91288.0,0.09583774]
[1767815587014,0.010964,91298.0,91286.0,0.09331777]
[1767815587015,0.0932,91307.0,91295.0,0.09583774]
[1767815587218,0.0932,91307.0,91290.0,0.13308642]
[1767815587513,0.010964,91301.0,91290.0,0.13308642]
[1767815587714,0.104162,91317.0,91290.0,0.13308642]
[1767815587919,0.104162,91317.0,91288.0,0.010966]
[1767815587920,0.10592081,91316.0,91300.0,0.13308642]
[1767815588521,0.010964,91304.0,91300.0,0.13308642]
[1767815588715,0.010964,91304.0,91294.0,0.13308642]
[1767815588914,0.010964,91307.0,91294.0,0.13308642]
[1767815589126,0.10592181,91315.0,91297.0,0.13308642]
[1767815589330,0.10592181,91315.0,91298.0,0.09583774]
[1767815589531,0.010963,91308.0,91298.0,0.09583774]
[1767815590731,0.10592181,91315.0,91298.0,0.09583774]
[1767815591135,0.010964,91306.0,91298.0,0.09583774]
[1767815592223,0.010963,91315.0,91300.0,0.09583774]
[1767815592429,0.010963,91315.0,91302.0,7.4e-07]
[1767815593820,0.010964,91304.0,91302.0,7.4e-07]
[1767815594226,0.010964,91304.0,91297.0,0.13308642]
[1767815594426,0.010964,91304.0,91298.0,0.09583774]
[1767815594739,0.010964,91302.0,91296.0,0.0932]
[1767815594937,0.010964,91300.0,91293.0,0.0932]
[1767815595327,0.010964,91300.0,91292.0,0.0932]
[1767815595833,0.010965,91294.0,91286.0,0.09595551]
[1767815596141,0.09495881,91299.0,91286.0,0.09331777]
[1767815596927,0.010965,91293.0,91286.0,0.09331777]
[1767815597145,0.010965,91293.0,91273.0,0.010967]
[1767815597146,0.0933913,91295.0,91274.0,0.0932]
[1767815597348,0.010966,91290.0,91275.0,0.09583774]
[1767815597849,0.010966,91290.0,91278.0,0.09583774]
[1767815598051,8.255e-05,91289.0,91278.0,0.09583774]
[1767815598651,0.00885841,91290.0,91278.0,0.09583774]
[1767815599652,4.587e-05,91289.0,91280.0,0.13308642]
[1767815600845,0.010966,91286.0,91279.0,0.13308642]
[1767815601045,4.587e-05,91289.0,91266.0,0.010968]
[1767815601046,0.09495881,91288.0,91273.0,0.0932]
[1767815601347,0.010966,91288.0,91274.0,0.09583774]
[1767815602345,0.010966,91286.0,91274.0,0.09583774]
[1767815603053,0.010966,91286.0,91271.0,0.08301922]
[1767815603054,0.09500468,91289.0,91271.0,0.09583774]
[1767815603255,0.09495881,91288.0,91271.0,0.18903774]
[1767815603446,0.09495881,91288.0,91272.0,0.09583774]
[1767815605261,0.010966,91283.0,91272.0,0.09583774]
[1767815605566,0.010968,91271.0,91268.0,0.0932]
[1767815605858,0.010967,91274.0,91261.0,0.0932]
[1767815607762,0.010967,91274.0,91262.0,0.09583774]
[1767815608556,0.010967,91274.0,91261.0,0.0932]
[1767815608557,0.010967,91278.0,91265.0,0.1813543]
[1767815608756,0.0932,91288.0,91269.0,0.09583774]
[1767815609060,0.18815881,91288.0,91269.0,0.09583774]
[1767815609255,0.09495881,91287.0,91270.0,0.13308642]
[1767815609653,0.09495881,91286.0,91270.0,0.13308642]
[1767815610163,0.010967,91278.0,91270.0,0.13308642]
[1767815612361,0.010967,91278.0,91268.0,0.22892416]
[1767815613164,0.010967,91278.0,91269.0,0.09760453]
[1767815613462,0.010967,91281.0,91269.0,0.09760453]
[1767815614663,0.010967,91279.0,91269.0,0.09760453]
[1767815615254,0.010967,91277.0,91269.0,0.23069095]
[1767815615449,0.09510232,91284.0,91269.0,0.13308642]
[1767815616453,0.09510232,91284.0,91270.0,0.13308642]
[1767815617163,0.010968,91271.0,91260.0,0.21680682]
[1767815617357,0.010968,91271.0,91261.0,0.0932]
[1767815617761,0.10606932,91281.0,91261.0,0.0932]
[1767815618560,0.09510232,91281.0,91253.0,0.0932]
[1767815618965,0.09510232,91281.0,91243.0,0.09820984]
[1767815618966,0.09510232,91281.0,91252.0,0.09760453]
[1767815619270,0.09510232,91281.0,91265.0,1.0455]
[1767815619465,0.09510232,91281.0,91252.0,0.09760453]
[1767815619770,0.09510232,91281.0,91256.0,0.09760453]
[1767815619970,0.09510232,91281.0,91259.0,0.09979611]
[1767815621174,0.010966,91284.0,91261.0,0.09760453]
[1767815621466,0.09510232,91283.0,91259.0,0.00219158]
[1767815622567,0.09510232,91285.0,91259.0,0.00219158]
[1767815622767,0.09510232,91284.0,91259.0,0.00219158]
[1767815623366,0.09510232,91284.0,91260.0,0.09195167]
[1767815623560,0.09510232,91284.0,91262.0,0.09195167]
[1767815623764,0.49510232,91284.0,91262.0,0.09195167]
[1767815623965,0.09510232,91283.0,91262.0,0.09195167]
[1767815624668,0.09510232,91281.0,91259.0,0.00219158]
[1767815626373,0.4,91281.0,91259.0,0.00219158]
[1767815628271,0.4,91281.0,91259.0,0.09414325]
[1767815631777,0.4002348,91281.0,91259.0,0.09414325]
[1767815632872,0.4,91281.0,91259.0,0.09414325]
[1767815633074,0.010967,91280.0,91259.0,0.09414325]
[1767815634381,0.010967,91280.0,91259.0,0.09409325]
[1767815635175,0.4,91281.0,91259.0,0.09409325]
[1767815635383,0.010966,91288.0,91266.0,0.1895562]
[1767815635583,0.010967,91277.0,91268.0,0.09195167]
[1767815635880,0.09324,91279.0,91268.0,0.09195167]
[1767815636078,0.09324,91280.0,91268.0,0.09195167]
[1767815636281,0.09324,91281.0,91268.0,0.09195167]
[1767815636584,0.104207,91281.0,91270.0,0.09195167]
[1767815636779,0.09324,91281.0,91270.0,0.09195167]
[1767815637282,0.104207,91281.0,91270.0,0.09195167]
[1767815637483,0.010967,91279.0,91270.0,0.09195167]
[1767815637781,0.09324,91281.0,91270.0,0.09195167]
[1767815639185,0.09324,91281.0,91259.0,0.00214158]
[1767815639186,0.010965,91291.0,91271.0,0.1895562]
[1767815639486,0.010966,91289.0,91260.0,0.09760453]
[1767815639788,0.09324,91288.0,91260.0,0.09760453]
[1767815640178,0.010967,91278.0,91260.0,0.09760453]
[1767815641283,0.09094593,91287.0,91261.0,0.09212926]
[1767815641484,0.010968,91269.0,91261.0,0.09212926]
[1767815641986,0.010968,91271.0,91262.0,0.0964696]
[1767815642379,0.010968,91266.0,91259.0,0.00214158]
[1767815642584,0.010969,91261.0,91259.0,5.8e-07]
[1767815644783,0.010969,91260.0,91259.0,5.8e-07]
[1767815649284,0.09324,91267.0,91247.0,0.09461418]
[1767815650182,0.010969,91258.0,91247.0,0.09461418]
[1767815650382,0.010969,91261.0,91247.0,0.09461418]
[1767815651392,0.09324,91267.0,91249.0,0.09461418]
[1767815651584,0.09324,91267.0,91251.0,0.09461418]
[1767815651780,0.010968,91272.0,91256.0,0.19108378]
[1767815651981,0.0902453,91275.0,91240.0,0.00011293]
[1767815652188,0.010969,91258.0,91241.0,0.09324]
[1767815652384,0.010969,91261.0,91241.0,0.09324]
[1767815652591,0.010968,91265.0,91241.0,0.09324]
[1767815652893,0.09324,91274.0,91241.0,0.09324]
[1767815652894,0.010969,91264.0,91241.0,0.09324]
[1767815653081,0.010969,91262.0,91241.0,0.09324]
[1767815653287,0.010969,91260.0,91241.0,0.09324]
[1767815653679,0.01097,91255.0,91240.0,0.00011293]
[1767815653886,0.01097,91255.0,91242.0,0.09324]
[1767815654193,0.01097,91255.0,91242.0,0.28432378]
[1767815654390,0.1950584,91263.0,91242.0,0.19108378]
[1767815654688,0.01097,91252.0,91242.0,0.19108378]
[1767815654886,0.01097,91255.0,91243.0,0.0964696]
[1767815655089,0.01097,91253.0,91243.0,0.0964696]
[1767815655993,0.09213138,91262.0,91243.0,0.0964696]
[1767815656194,0.01097,91249.0,91240.0,0.00011293]
[1767815657391,0.010971,91247.0,91240.0,0.00011293]
[1767815657895,0.01097,91250.0,91240.0,0.00011293]
[1767815658697,0.01097,91249.0,91238.0,0.19108378]
[1767815659195,0.010971,91247.0,91232.0,0.09461418]
[1767815659393,0.010971,91247.0,91232.0,0.19108378]
[1767815659595,0.010971,91247.0,91234.0,0.0964696]
[1767815659786,0.00011293,91246.0,91234.0,0.19108378]
[1767815660194,0.00011293,91246.0,91229.0,0.4021923]
[1767815660498,0.09457801,91244.0,91216.0,0.010974]
[1767815660790,0.00011293,91246.0,91218.0,0.010974]
[1767815661096,0.00011293,91246.0,91208.0,0.09324]
[1767815661097,0.010971,91242.0,91211.0,0.010975]
[1767815661295,0.09335293,91246.0,91213.0,0.010975]
[1767815661494,0.09335293,91246.0,91223.0,0.010973]
[1767815661882,0.00011293,91246.0,91223.0,0.010973]
[1767815662283,0.00011293,91246.0,91228.0,0.19108378]
[1767815662490,0.010971,91241.0,91230.0,0.09461418]
[1767815662786,0.010971,91241.0,91231.0,0.09461418]
[1767815662983,0.010971,91241.0,91232.0,0.09461418]
[1767815663588,0.010971,91244.0,91232.0,0.09461418]
[1767815663996,0.00011293,91246.0,91232.0,0.09461418]
[1767815664197,0.09324,91245.0,91232.0,0.09461418]
[1767815665201,0.010971,91244.0,91232.0,0.09461418]
[1767815665400,0.010971,91244.0,91233.0,0.09461418]
[1767815665603,0.09324,91245.0,91233.0,0.09461418]
[1767815665899,0.09324,91245.0,91234.0,0.09461418]
[1767815666100,0.09324,91245.0,91235.0,0.09461418]
[1767815666303,0.09324,91249.0,91239.0,0.09461418]
[1767815666691,0.09324,91249.0,91238.0,0.0964696]
[1767815667001,0.09324,91249.0,91235.0,0.09461418]
[1767815668500,0.09324,91252.0,91238.0,0.09461418]
[1767815668697,0.09324,91252.0,91239.0,0.0964696]
[1767815669101,0.01097,91250.0,91240.0,0.09461418]
[1767815669399,0.09324,91252.0,91239.0,0.0964696]
[1767815669599,0.010971,91245.0,91236.0,0.09461418]
[1767815669805,0.010971,91248.0,91236.0,0.09461418]
[1767815670606,0.09324,91252.0,91236.0,0.09461418]
[1767815671000,0.010971,91247.0,91236.0,0.09461418]
[1767815672908,0.010971,91247.0,91237.0,0.0955581]
[1767815673097,0.01097,91250.0,91237.0,0.0955581]
[1767815674300,0.010971,91248.0,91237.0,0.0955581]
[1767815674500,0.010971,91248.0,91236.0,0.09269816]
[1767815674702,0.010971,91246.0,91237.0,0.0955581]
[1767815676510,0.010971,91244.0,91237.0,0.0955581]
[1767815676916,0.010971,91243.0,91237.0,0.0955581]
[1767815678011,0.09324,91251.0,91237.0,0.0955581]
[1767815678205,0.010971,91246.0,91238.0,0.0955581]
[1767815678406,0.010971,91245.0,91238.0,0.0955581]
[1767815678606,0.010971,91240.0,91238.0,0.09269826]
[1767815678804,0.010972,91239.0,91220.0,0.09324]
[1767815679315,0.010972,91233.0,91210.0,0.010975]
[1767815679510,0.010972,91234.0,91212.0,0.010975]
[1767815679715,0.010972,91234.0,91213.0,0.104215]
[1767815680016,0.010972,91234.0,91214.0,0.09324]
[1767815680213,0.09938303,91240.0,91214.0,0.09324]
[1767815680409,0.19663998,91240.0,91213.0,0.010975]
[1767815680726,0.28987998,91241.0,91199.0,0.09543302]
[1767815680727,0.010974,91216.0,91199.0,0.09543302]
[1767815680920,0.010974,91216.0,91205.0,0.0955581]
[1767815681121,0.09324,91225.0,91207.0,0.0955581]
[1767815681421,0.010975,91213.0,91207.0,0.0955581]
[1767815681611,0.010973,91224.0,91210.0,0.09269816]
[1767815681915,0.010973,91230.0,91215.0,0.0955581]
[1767815682113,0.09324,91229.0,91217.0,0.09269826]
[1767815682422,0.010973,91230.0,91217.0,0.09269826]
[1767815682423,0.010974,91222.0,91217.0,0.09269826]
[1767815682920,0.010973,91227.0,91217.0,0.09269816]
[1767815683215,0.09324,91235.0,91217.0,0.09269816]
[1767815683423,0.010973,91227.0,91217.0,0.09269816]
[1767815683728,0.010973,91225.0,91217.0,0.09269816]
[1767815684213,0.010973,91225.0,91218.0,0.0955581]
[1767815684720,0.010973,91225.0,91219.0,0.0955581]
[1767815684916,0.010972,91235.0,91223.0,0.0955581]
[1767815685224,0.010972,91233.0,91223.0,0.0955581]
[1767815685922,0.010973,91231.0,91223.0,0.0955581]
[1767815686820,0.010972,91234.0,91224.0,0.0955581]
[1767815687018,0.010973,91231.0,91226.0,0.0955581]
[1767815687220,0.010973,91231.0,91221.0,0.0955581]
[1767815687925,0.010973,91231.0,91221.0,0.18825626]
[1767815688225,0.010971,91246.0,91209.0,0.09328]
[1767815688226,0.09725695,91253.0,91229.0,0.0955581]
[1767815688526,0.010971,91240.0,91231.0,0.0955581]
[1767815688726,0.01097,91250.0,91231.0,0.0955581]
[1767815688928,0.010971,91240.0,91231.0,0.0955581]
[1767815692733,0.01097,91250.0,91231.0,0.0955581]
[1767815694131,0.010971,91241.0,91231.0,0.0955581]
[1767815694329,0.010971,91241.0,91210.0,0.13328436]
[1767815694330,0.09725695,91225.0,91199.0,0.00219302]
[1767815694528,0.010976,91206.0,91200.0,0.09328]
[1767815694728,0.010974,91222.0,91201.0,0.09328]
[1767815694729,0.09938303,91211.0,91201.0,0.09328]
[1767815694925,0.09938303,91217.0,91201.0,0.09328]
[1767815695125,0.010975,91212.0,91201.0,0.09328]
[1767815695326,0.010975,91215.0,91201.0,0.09328]
[1767815695526,0.11035603,91228.0,91201.0,0.09328]
[1767815695728,0.010975,91210.0,91201.0,0.09328]
[1767815695933,0.010974,91222.0,91201.0,0.09328]
[1767815696331,0.010974,91221.0,91202.0,0.04474367]
[1767815696538,0.010974,91219.0,91202.0,0.04474367]
[1767815696737,0.09938303,91225.0,91203.0,0.04474367]
[1767815697635,0.010974,91220.0,91203.0,0.04474367]
[1767815697833,0.09938303,91225.0,91203.0,0.04474367]
[1767815698035,0.09938303,91224.0,91203.0,0.04474367]
[1767815698429,0.09938303,91223.0,91203.0,0.04474367]
[1767815698627,0.11035703,91222.0,91203.0,7.6e-07]
[1767815698828,0.010974,91217.0,91201.0,0.09328]
[1767815699035,0.010975,91211.0,91210.0,9e-08]
[1767815699239,0.010974,91217.0,91201.0,0.22664609]
[1767815699428,0.010975,91208.0,91207.0,9e-08]
[1767815699627,0.010974,91217.0,91201.0,0.09328]
[1767815700134,0.010975,91207.0,91201.0,0.09328]
[1767815700439,0.09725695,91214.0,91199.0,2e-08]
[1767815700739,0.010976,91204.0,91200.0,0.22664609]
[1767815700926,0.09938303,91212.0,91201.0,0.09328]
[1767815701126,0.09938303,91212.0,91202.0,0.09328]
[1767815701331,0.09938303,91212.0,91203.0,0.09328]
[1767815701532,0.09938303,91212.0,91204.0,0.09328]
[1767815701734,0.09938303,91212.0,91205.0,0.09328]
[1767815701933,0.09166997,91218.0,91204.0,0.09328]
[1767815702532,0.010975,91207.0,91200.0,0.13336609]
[1767815702741,0.010976,91207.0,91199.0,2e-08]
[1767815703142,0.13336609,91230.0,91199.0,2e-08]
[1767815703143,0.09166997,91221.0,91200.0,0.09291024]
[1767815703338,0.09166997,91234.0,91211.0,0.09291024]
[1767815703642,0.010973,91230.0,91220.0,0.13336609]
[1767815703830,0.09166997,91238.0,91221.0,0.09328]
[1767815704232,0.18879201,91238.0,91221.0,0.09328]
[1767815704534,0.18879201,91236.0,91221.0,0.09328]
[1767815704738,0.010973,91231.0,91221.0,0.09328]
[1767815707744,0.010973,91229.0,91221.0,0.09328]
[1767815708140,0.09166997,91229.0,91217.0,0.09328]
[1767815710645,0.010971,91242.0,91221.0,0.010974]
[1767815710837,0.09166997,91251.0,91232.0,0.13336609]
[1767815711038,0.010972,91238.0,91233.0,0.04071732]
[1767815711249,0.010972,91238.0,91233.0,0.09328]
[1767815711444,0.18879201,91248.0,91233.0,0.09328]
[1767815711844,0.010972,91239.0,91233.0,0.09328]
[1767815712047,0.01097,91249.0,91233.0,0.09328]
[1767815712450,0.010972,91238.0,91233.0,0.09328]
[1767815712650,0.01097,91249.0,91233.0,0.09328]
[1767815713139,0.01097,91249.0,91234.0,0.09291024]
[1767815714150,0.010971,91240.0,91234.0,0.09291024]
[1767815714448,0.01097,91249.0,91234.0,0.09291024]
[1767815714951,0.01097,91249.0,91239.0,9e-08]
[1767815715150,0.01097,91249.0,91234.0,0.09291024]
[1767815715846,0.010971,91242.0,91239.0,9e-08]
[1767815716148,0.010969,91257.0,91234.0,0.09291024]
[1767815716543,0.010969,91257.0,91240.0,0.13336609]
[1767815716742,0.010969,91258.0,91240.0,0.13336609]
[1767815716949,0.010971,91246.0,91240.0,0.13336609]
[1767815717150,0.010971,91246.0,91236.0,0.13336609]
[1767815717351,0.01097,91249.0,91236.0,0.13336609]
[1767815717537,0.010969,91262.0,91239.0,0.22627633]
[1767815717743,0.28207201,91271.0,91249.0,0.13336609]
[1767815718039,0.18879201,91270.0,91249.0,0.22664609]
[1767815718237,0.09166997,91269.0,91249.0,0.22664609]
[1767815718436,0.010969,91259.0,91249.0,0.22664609]
[1767815720046,0.010969,91262.0,91250.0,0.09291024]
[1767815720253,0.010969,91264.0,91252.0,0.21735849]
[1767815720450,0.010969,91264.0,91254.0,0.13336609]
[1767815720850,0.010968,91268.0,91254.0,0.13336609]
[1767815721047,0.010968,91268.0,91260.0,0.13336609]
[1767815723255,0.010968,91266.0,91260.0,0.13336609]
[1767815723447,0.010968,91266.0,91256.0,0.13336609]
[1767815726756,0.010969,91264.0,91256.0,0.13336609]
[1767815727057,0.09712204,91271.0,91249.0,0.09328]